fUSD/lending_fUSD_20240708
["ID","MTS","AMOUNT","RATE_DAILY","PERIOD"]
[331463411,1720427447354,-2675.11119103,0.00015,2]
[331463412,1720427447523,-423.59780347,0.00015,2]
[331463413,1720427447535,-1417.7495,0.00015,2]
[331463414,1720427447547,-943.31862009,0.00015,2]
[331463415,1720427447576,-1086.34273564,0.00015,2]
[331463416,1720427447588,-7307.43495099,0.00015,2]
[331463417,1720427447659,-500.0,0.00015,2]
[331463418,1720427447670,-729.77804158,0.00015,2]
[331463426,1720427464556,6557.19105607,0.00011199,2]
[331463432,1720427662612,-150.0,0.00034099,30]
[331463433,1720427662657,-500.0,0.00034099,30]
[331463434,1720427662705,-500.0,0.00034099,31]
[331463435,1720427662750,-500.0,0.00034099,32]
[331463436,1720427662794,-500.0,0.00034099,33]
[331463437,1720427662839,-631.84036922,0.00034099,34]
[331463438,1720427662882,-983.0,0.00034099,30]
[331463439,1720427662928,-516.0,0.00034099,30]
[331463440,1720427662977,-191.0,0.00034099,30]
[331463441,1720427663020,-440.51035866,0.00034099,30]
[331463442,1720427663068,-500.0,0.00034099,30]
[331463443,1720427663114,-500.0,0.00034099,31]
[331463444,1720427663162,-500.0,0.00034099,32]
[331463445,1720427663207,-500.0,0.00034099,33]
[331463446,1720427663251,-500.0,0.00034099,34]
[331463447,1720427663298,-466.09158947,0.00034099,35]
[331463448,1720427663344,-500.0,0.00034099,30]
[331463449,1720427663390,-500.0,0.00034099,31]
[331463450,1720427663445,-500.0,0.00034099,32]
[331463451,1720427663491,-511.04988539,0.00034099,33]
[331463452,1720427663536,-501.75261957,0.00034099,30]
[331463453,1720427663581,-500.0,0.00034099,30]
[331463454,1720427663631,-500.0,0.00034099,31]
[331463455,1720427663677,-500.0,0.00034099,32]
[331463456,1720427663725,-500.0,0.00034099,33]
[331463457,1720427663772,-356.14852162,0.00034099,34]
[331463458,1720427663816,-500.0,0.00034099,30]
[331463459,1720427663861,-507.31834154,0.00034099,31]
[331463460,1720427663906,-501.70338596,0.00034099,30]
[331463461,1720427663955,-500.0,0.00034099,30]
[331463462,1720427664002,-500.0,0.00034099,31]
[331463463,1720427664049,-500.0,0.00034099,32]
[331463464,1720427664095,-500.0,0.00034099,33]
[331463465,1720427664142,-500.0,0.00034099,34]
[331463466,1720427664190,-500.0,0.00034099,35]
[331463467,1720427664234,-500.0,0.00034099,36]
[331463468,1720427664281,-500.0,0.00034099,37]
[331463469,1720427664329,-500.0,0.00034099,38]
[331463470,1720427664376,-500.0,0.00034099,39]
[331463471,1720427664424,-500.0,0.00034099,40]
[331463472,1720427664477,-500.0,0.00034099,41]
[331463473,1720427664524,-500.0,0.00034099,42]
[331463474,1720427664571,-611.1035756,0.00034099,43]
[331463475,1720427664617,-607.17735742,0.00034099,30]
[331463476,1720427664660,-500.0,0.00034099,30]
[331463477,1720427664706,-538.05444824,0.00034099,31]
[331463478,1720427664752,-503.3320276,0.00034099,30]
[331463479,1720427664797,-500.0,0.00034099,30]
[331463480,1720427664844,-500.0,0.00034099,31]
[331463481,1720427664892,-500.0,0.00034099,32]
[331463482,1720427664945,-500.0,0.00034099,33]
[331463483,1720427664993,-500.0,0.00034099,34]
[331463484,1720427665039,-500.0,0.00034099,35]
[331463485,1720427665086,-519.351212,0.00034099,36]
[331463486,1720427665134,-500.0,0.00034099,30]
[331463487,1720427665181,-500.0,0.00034099,31]
[331463488,1720427665237,-500.0,0.00034099,32]
[331463489,1720427665284,-500.0,0.00034099,33]
[331463490,1720427665332,-500.0,0.00034099,34]
[331463491,1720427665379,-204.81971141,0.00034099,35]
[331463492,1720427665426,-500.0,0.00034099,30]
[331463493,1720427665478,-500.0,0.00034099,31]
[331463494,1720427665524,-500.0,0.00034099,32]
[331463495,1720427665572,-500.0,0.00034099,33]
[331463496,1720427665619,-500.0,0.00034099,34]
[331463497,1720427665666,-500.0,0.00034099,35]
[331463498,1720427665714,-500.0,0.00034099,36]
[331463499,1720427666015,-500.0,0.00034099,37]
[331463500,1720427666085,-500.0,0.00034099,38]
[331463501,1720427666130,-500.0,0.00034099,39]
[331463502,1720427666174,-500.0,0.00034099,40]
[331463503,1720427666222,-500.0,0.00034099,41]
[331463504,1720427666268,-500.0,0.00034099,42]
[331463505,1720427666314,-500.0,0.00034099,43]
[331463506,1720427666360,-500.0,0.00034099,44]
[331463507,1720427666406,-396.51402978,0.00034099,45]
[331463508,1720427666450,-174.79762084,0.00034099,30]
[331463509,1720427666495,-500.0,0.00034099,30]
[331463510,1720427666546,-500.0,0.00034099,31]
[331463511,1720427666592,-500.0,0.00034099,32]
[331463512,1720427666636,-500.0,0.00034099,33]
[331463513,1720427666683,-513.99050419,0.00034099,34]
[331463514,1720427666732,-375.20156902,0.00034099,30]
[331463515,1720427666778,-500.0,0.00034099,30]
[331463516,1720427666831,-500.0,0.00034099,31]
[331463517,1720427666880,-507.67779238,0.00034099,32]
[331463518,1720427666930,-500.0,0.00034099,30]
[331463519,1720427666987,-574.69557863,0.00034099,31]
[331463520,1720427667035,-304.38267388,0.00034099,30]
[331463521,1720427667082,-500.0,0.00034099,30]
[331463522,1720427667129,-500.0,0.00034099,31]
[331463523,1720427667175,-611.43844257,0.00034099,32]
[331463524,1720427667222,-500.0,0.00034099,30]
[331463525,1720427667270,-500.0,0.00034099,31]
[331463526,1720427667316,-503.61591054,0.00034099,32]
[331463527,1720427667361,-500.0,0.00034099,30]
[331463528,1720427667405,-500.0,0.00034099,31]
[331463529,1720427667450,-501.93020731,0.00034099,32]
[331463530,1720427667495,-500.0,0.00034099,30]
[331463531,1720427667540,-500.0,0.00034099,31]
[331463532,1720427667585,-500.0,0.00034099,32]
[331463533,1720427667629,-584.09548104,0.00034099,33]
[331463534,1720427667673,-619.05717804,0.00034099,30]
[331463535,1720427667722,-191.64359822,0.00034099,30]
[331463536,1720427667769,-500.0,0.00034099,30]
[331463537,1720427667813,-500.0,0.00034099,31]
[331463538,1720427667859,-500.0,0.00034099,32]
[331463539,1720427667901,-500.0,0.00034099,33]
[331463540,1720427667945,-506.36947101,0.00034099,34]
[331463541,1720427668008,-491.00433302,0.00034099,30]
[331463542,1720427668058,-786.03,0.00034099,30]
[331463543,1720427668108,-786.03,0.00034099,31]
[331463544,1720427668157,-500.0,0.00034099,30]
[331463545,1720427668203,-500.0,0.00034099,31]
[331463546,1720427668249,-500.0,0.00034099,32]
[331463547,1720427668295,-786.03,0.00034099,32]
[331463548,1720427668340,-500.0,0.00034099,33]
[331463549,1720427668385,-786.03,0.00034099,33]
[331463550,1720427668431,-527.67720563,0.00034099,30]
[331463551,1720427668478,-500.0,0.00034099,34]
[331463552,1720427668524,-786.03,0.00034099,34]
[331463553,1720427668570,-500.0,0.00034099,35]
[331463554,1720427668616,-786.03,0.00034099,35]
[331463555,1720427668660,-500.0,0.00034099,36]
[331463556,1720427668707,-786.03,0.00034099,36]
[331463557,1720427668751,-500.0,0.00034099,37]
[331463558,1720427668798,-786.03,0.00034099,37]
[331463559,1720427668847,-500.0,0.00034099,38]
[331463560,1720427668895,-786.03,0.00034099,38]
[331463561,1720427668947,-500.0,0.00034099,39]
[331463562,1720427668994,-786.03,0.00034099,39]
[331463563,1720427669041,-500.0,0.00034099,40]
[331463564,1720427669090,-786.03,0.00034099,40]
[331463565,1720427669137,-500.0,0.00034099,41]
[331463566,1720427669183,-500.0,0.00034099,42]
[331463567,1720427669239,-786.03,0.00034099,41]
[331463568,1720427669287,-500.0,0.00034099,43]
[331463569,1720427669335,-786.03,0.00034099,42]
[331463570,1720427669383,-786.03,0.00034099,43]
[331463571,1720427669430,-786.03,0.00034099,44]
[331463572,1720427669481,-500.0,0.00034099,30]
[331463573,1720427669529,-786.03,0.00034099,45]
[331463574,1720427669578,-500.0,0.00034099,31]
[331463575,1720427669624,-786.03,0.00034099,46]
[331463576,1720427669670,-500.0,0.00034099,32]
[331463577,1720427669715,-505.33524505,0.00034099,33]
[331463578,1720427669758,-786.03,0.00034099,47]
[331463579,1720427669806,-786.03,0.00034099,48]
[331463580,1720427669858,-786.03,0.00034099,49]
[331463581,1720427669905,-500.0,0.00034099,44]
[331463582,1720427669955,-786.03,0.00034099,50]
[331463583,1720427670004,-500.0,0.00034099,45]
[331463584,1720427670053,-786.03,0.00034099,51]
[331463585,1720427670101,-500.0,0.00034099,46]
[331463586,1720427670149,-786.03,0.00034099,52]
[331463587,1720427670196,-500.0,0.00034099,47]
[331463588,1720427670243,-786.16743152,0.00034099,53]
[331463589,1720427670291,-500.0,0.00034099,48]
[331463590,1720427670341,-500.0,0.00034099,49]
[331463591,1720427670388,-500.0,0.00034099,50]
[331463592,1720427670441,-500.0,0.00034099,51]
[331463593,1720427670490,-500.0,0.00034099,52]
[331463594,1720427670538,-180.99548058,0.00034099,53]
[331463595,1720427670585,-2486.48,0.00034099,30]
[331463596,1720427670634,-2486.48,0.00034099,31]
[331463597,1720427670681,-2486.48,0.00034099,32]
[331463598,1720427670731,-2486.48,0.00034099,33]
[331463599,1720427670780,-993.73,0.00034099,30]
[331463600,1720427670830,-993.73,0.00034099,31]
[331463601,1720427670878,-993.73,0.00034099,32]
[331463602,1720427670927,-993.73,0.00034099,33]
[331463603,1720427670987,-993.73,0.00034099,34]
[331463604,1720427671288,-2486.48,0.00034099,34]
[331463605,1720427672532,-993.73,0.00034099,35]
[331463606,1720427672584,-993.73,0.00034099,36]
[331463607,1720427672633,-2486.48,0.00034099,35]
[331463608,1720427672678,-993.73,0.00034099,37]
[331463609,1720427672724,-2486.48,0.00034099,36]
[331463610,1720427672769,-993.73,0.00034099,38]
[331463611,1720427672813,-993.73,0.00034099,39]
[331463612,1720427672859,-2486.48,0.00034099,37]
[331463613,1720427672909,-993.73,0.00034099,40]
[331463614,1720427672956,-2486.48,0.00034099,38]
[331463615,1720427673002,-993.73,0.00034099,41]
[331463616,1720427673048,-2486.48,0.00034099,39]
[331463617,1720427673094,-993.73,0.00034099,42]
[331463618,1720427673142,-2486.48,0.00034099,40]
[331463619,1720427673189,-993.73,0.00034099,43]
[331463620,1720427673239,-500.0,0.00034099,30]
[331463621,1720427673285,-993.73,0.00034099,44]
[331463622,1720427673333,-2486.48,0.00034099,41]
[331463623,1720427673377,-500.0,0.00034099,31]
[331463624,1720427673421,-993.73,0.00034099,45]
[331463625,1720427673464,-2486.48,0.00034099,42]
[331463626,1720427673506,-325.64908961,0.00034099,32]
[331463627,1720427673548,-993.73,0.00034099,46]
[331463628,1720427673592,-500.0,0.00034099,30]
[331463629,1720427673636,-2486.48,0.00034099,43]
[331463630,1720427673680,-993.73,0.00034099,47]
[331463631,1720427673725,-500.0,0.00034099,31]
[331463632,1720427673772,-2486.48,0.00034099,44]
[331463633,1720427673817,-993.73,0.00034099,48]
[331463634,1720427673866,-500.0,0.00034099,32]
[331463635,1720427673912,-2486.48,0.00034099,45]
[331463636,1720427673958,-993.73,0.00034099,49]
[331463637,1720427674002,-500.0,0.00034099,33]
[331463638,1720427674050,-2486.48,0.00034099,46]
[331463639,1720427674096,-993.73,0.00034099,50]
[331463640,1720427674143,-500.0,0.00034099,34]
[331463641,1720427674193,-2486.48,0.00034099,47]
[331463642,1720427674242,-993.73,0.00034099,51]
[331463643,1720427674290,-2486.48,0.00034099,48]
[331463644,1720427674337,-993.73,0.00034099,52]
[331463645,1720427674384,-500.0,0.00034099,35]
[331463646,1720427674430,-2486.48,0.00034099,49]
[331463647,1720427674479,-993.84943924,0.00034099,53]
[331463648,1720427674525,-546.71085883,0.00034099,30]
[331463649,1720427674571,-2486.48,0.00034099,50]
[331463650,1720427674622,-500.0,0.00034099,36]
[331463651,1720427674672,-2486.48,0.00034099,51]
[331463652,1720427674720,-500.0,0.00034099,37]
[331463653,1720427674768,-2486.48,0.00034099,52]
[331463654,1720427674814,-2486.7095561,0.00034099,53]
[331463655,1720427674860,-500.0,0.00034099,38]
[331463656,1720427674905,-500.0,0.00034099,39]
[331463657,1720427674956,-500.0,0.00034099,40]
[331463658,1720427675005,-152.80896163,0.00034099,41]
[331463659,1720427675050,-710.28,0.00034099,30]
[331463660,1720427675096,-710.28,0.00034099,31]
[331463661,1720427675141,-710.28,0.00034099,32]
[331463662,1720427675186,-710.28,0.00034099,33]
[331463663,1720427675236,-710.28,0.00034099,34]
[331463664,1720427675281,-1129.65,0.00034099,30]
[331463665,1720427675327,-710.28,0.00034099,35]
[331463666,1720427675371,-1129.65,0.00034099,31]
[331463667,1720427675414,-710.28,0.00034099,36]
[331463668,1720427675457,-1129.65,0.00034099,32]
[331463669,1720427675501,-500.0,0.00034099,30]
[331463670,1720427675546,-710.28,0.00034099,37]
[331463671,1720427675591,-1129.65,0.00034099,33]
[331463672,1720427675636,-500.0,0.00034099,31]
[331463673,1720427675680,-710.28,0.00034099,38]
[331463674,1720427675724,-1129.65,0.00034099,34]
[331463675,1720427675769,-500.0,0.00034099,32]
[331463676,1720427675815,-631.99,0.00034099,30]
[331463677,1720427675862,-710.28,0.00034099,39]
[331463678,1720427675908,-1129.65,0.00034099,35]
[331463679,1720427675961,-631.99,0.00034099,31]
[331463680,1720427676010,-710.28,0.00034099,40]
[331463681,1720427676058,-500.0,0.00034099,30]
[331463682,1720427676105,-1129.65,0.00034099,36]
[331463683,1720427676150,-500.0,0.00034099,33]
[331463684,1720427676201,-631.99,0.00034099,32]
[331463685,1720427676251,-710.28,0.00034099,41]
[331463686,1720427676298,-500.0,0.00034099,31]
[331463687,1720427676351,-1129.65,0.00034099,37]
[331463688,1720427676405,-631.99,0.00034099,33]
[331463689,1720427676456,-500.0,0.00034099,34]
[331463690,1720427676503,-1129.65,0.00034099,38]
[331463691,1720427676552,-710.28,0.00034099,42]
[331463692,1720427676598,-500.0,0.00034099,35]
[331463693,1720427676646,-1129.65,0.00034099,39]
[331463694,1720427676697,-500.0,0.00034099,36]
[331463695,1720427676748,-631.99,0.00034099,34]
[331463696,1720427676797,-1129.65,0.00034099,40]
[331463697,1720427676845,-500.0,0.00034099,37]
[331463698,1720427676898,-500.0,0.00034099,32]
[331463699,1720427676946,-631.99,0.00034099,35]
[331463700,1720427676993,-710.28,0.00034099,43]
[331463701,1720427677040,-500.0,0.00034099,38]
[331463702,1720427677089,-500.0,0.00034099,33]
[331463703,1720427677140,-631.99,0.00034099,36]
[331463704,1720427677188,-1129.65,0.00034099,41]
[331463705,1720427677242,-710.28,0.00034099,44]
[331463706,1720427677292,-631.99,0.00034099,37]
[331463707,1720427677554,-500.0,0.00034099,34]
[331463708,1720427677601,-1129.65,0.00034099,42]
[331463709,1720427677648,-710.28,0.00034099,45]
[331463710,1720427677698,-631.99,0.00034099,38]
[331463711,1720427677743,-500.0,0.00034099,39]
[331463712,1720427677790,-500.0,0.00034099,35]
[331463713,1720427677834,-1129.65,0.00034099,43]
[331463714,1720427677879,-710.28,0.00034099,46]
[331463715,1720427677924,-631.99,0.00034099,39]
[331463716,1720427677975,-500.0,0.00034099,36]
[331463717,1720427678025,-710.28,0.00034099,47]
[331463718,1720427678077,-500.0,0.00034099,40]
[331463719,1720427678128,-631.99,0.00034099,40]
[331463720,1720427678178,-1129.65,0.00034099,44]
[331463721,1720427678230,-500.0,0.00034099,37]
[331463722,1720427678277,-710.28,0.00034099,48]
[331463723,1720427678323,-500.0,0.00034099,41]
[331463724,1720427678368,-631.99,0.00034099,41]
[331463725,1720427678413,-1129.65,0.00034099,45]
[331463726,1720427678458,-500.0,0.00034099,38]
[331463727,1720427678502,-710.28,0.00034099,49]
[331463728,1720427678547,-500.0,0.00034099,42]
[331463729,1720427678592,-1129.65,0.00034099,46]
[331463730,1720427678636,-631.99,0.00034099,42]
[331463731,1720427678680,-500.0,0.00034099,39]
[331463732,1720427678727,-500.0,0.00034099,30]
[331463733,1720427678769,-631.99,0.00034099,43]
[331463734,1720427678817,-500.0,0.00034099,43]
[331463735,1720427678865,-1129.65,0.00034099,47]
[331463736,1720427678909,-500.0,0.00034099,40]
[331463737,1720427678956,-710.28,0.00034099,50]
[331463738,1720427679003,-500.0,0.00034099,31]
[331463739,1720427679053,-631.99,0.00034099,44]
[331463740,1720427679105,-500.0,0.00034099,44]
[331463741,1720427679154,-1129.65,0.00034099,48]
[331463742,1720427679201,-500.0,0.00034099,41]
[331463743,1720427679245,-710.28,0.00034099,51]
[331463744,1720427679294,-631.99,0.00034099,45]
[331463745,1720427679341,-500.0,0.00034099,45]
[331463746,1720427679389,-1129.65,0.00034099,49]
[331463747,1720427679435,-500.0,0.00034099,42]
[331463748,1720427679487,-500.0,0.00034099,32]
[331463749,1720427679536,-710.28,0.00034099,52]
[331463750,1720427679587,-631.99,0.00034099,46]
[331463751,1720427679636,-500.0,0.00034099,46]
[331463752,1720427679686,-1129.65,0.00034099,50]
[331463753,1720427679735,-500.0,0.00034099,43]
[331463754,1720427679793,-500.0,0.00034099,33]
[331463755,1720427679841,-710.44,0.00034099,53]
[331463756,1720427679890,-631.99,0.00034099,47]
[331463757,1720427679941,-1129.65,0.00034099,51]
[331463758,1720427679989,-500.0,0.00034099,44]
[331463759,1720427680038,-500.0,0.00034099,47]
[331463760,1720427680086,-500.0,0.00034099,34]
[331463761,1720427680134,-631.99,0.00034099,48]
[331463762,1720427680183,-1129.65,0.00034099,52]
[331463763,1720427680234,-500.0,0.00034099,35]
[331463764,1720427680284,-500.0,0.00034099,45]
[331463765,1720427680335,-347.24190014,0.00034099,48]
[331463766,1720427680387,-631.99,0.00034099,49]
[331463767,1720427680438,-1129.6822741,0.00034099,53]
[331463768,1720427680492,-428.23133921,0.00034099,36]
[331463769,1720427680541,-500.0,0.00034099,46]
[331463770,1720427680591,-631.99,0.00034099,50]
[331463771,1720427680641,-500.0,0.00034099,47]
[331463772,1720427680692,-631.99,0.00034099,51]
[331463773,1720427680751,-631.99,0.00034099,52]
[331463774,1720427680804,-632.13,0.00034099,53]
[331463775,1720427680856,-1410.88,0.00034099,30]
[331463776,1720427680907,-500.0,0.00034099,48]
[331463777,1720427680960,-1410.88,0.00034099,31]
[331463778,1720427681013,-609.32,0.00034099,30]
[331463779,1720427681062,-497.35975157,0.00034099,49]
[331463780,1720427681110,-1410.88,0.00034099,32]
[331463781,1720427681159,-500.0,0.00034099,30]
[331463782,1720427681207,-1410.88,0.00034099,33]
[331463783,1720427681255,-609.32,0.00034099,31]
[331463784,1720427681304,-151.61940906,0.00034099,31]
[331463785,1720427681351,-1410.88,0.00034099,34]
[331463786,1720427681403,-609.32,0.00034099,32]
[331463787,1720427681467,-500.0,0.00034099,30]
[331463788,1720427681516,-1410.88,0.00034099,35]
[331463789,1720427681564,-609.32,0.00034099,33]
[331463790,1720427681611,-609.32,0.00034099,34]
[331463791,1720427681659,-1410.88,0.00034099,36]
[331463792,1720427681706,-1410.88,0.00034099,37]
[331463793,1720427681750,-609.32,0.00034099,35]
[331463794,1720427681802,-1410.88,0.00034099,38]
[331463795,1720427681850,-609.32,0.00034099,36]
[331463796,1720427681899,-1410.88,0.00034099,39]
[331463797,1720427681955,-609.32,0.00034099,37]
[331463798,1720427682008,-500.0,0.00034099,30]
[331463799,1720427682054,-1410.88,0.00034099,40]
[331463800,1720427682099,-1410.88,0.00034099,41]
[331463801,1720427682145,-500.0,0.00034099,31]
[331463802,1720427682190,-609.32,0.00034099,38]
[331463803,1720427682240,-1410.88,0.00034099,42]
[331463804,1720427682293,-500.0,0.00034099,30]
[331463805,1720427682340,-500.0,0.00034099,32]
[331463806,1720427682388,-609.32,0.00034099,39]
[331463807,1720427682437,-1410.88,0.00034099,43]
[331463808,1720427682500,-500.0,0.00034099,31]
[331463809,1720427682548,-500.0,0.00034099,33]
[331463810,1720427682594,-609.32,0.00034099,40]
[331463811,1720427682845,-1410.88,0.00034099,44]
[331463812,1720427682898,-500.0,0.00034099,32]
[331463813,1720427682944,-500.0,0.00034099,34]
[331463814,1720427682993,-609.32,0.00034099,41]
[331463815,1720427683037,-1410.88,0.00034099,45]
[331463816,1720427683086,-500.0,0.00034099,33]
[331463817,1720427683138,-500.0,0.00034099,35]
[331463818,1720427683185,-609.32,0.00034099,42]
[331463819,1720427683237,-1410.88,0.00034099,46]
[331463820,1720427683285,-500.0,0.00034099,34]
[331463821,1720427683332,-609.32,0.00034099,43]
[331463822,1720427683380,-500.0,0.00034099,36]
[331463823,1720427683429,-1410.88,0.00034099,47]
[331463824,1720427683477,-500.0,0.00034099,35]
[331463825,1720427683522,-609.32,0.00034099,44]
[331463826,1720427683567,-1410.88,0.00034099,48]
[331463827,1720427683613,-500.0,0.00034099,36]
[331463828,1720427683658,-609.32,0.00034099,45]
[331463829,1720427683704,-500.0,0.00034099,37]
[331463830,1720427683750,-500.0,0.00034099,30]
[331463831,1720427683796,-500.0,0.00034099,37]
[331463832,1720427683841,-609.32,0.00034099,46]
[331463833,1720427683888,-1410.88,0.00034099,49]
[331463834,1720427683934,-500.0,0.00034099,38]
[331463835,1720427683986,-324.39416146,0.00034099,38]
[331463836,1720427684034,-609.32,0.00034099,47]
[331463837,1720427684080,-500.0,0.00034099,31]
[331463838,1720427684129,-1410.88,0.00034099,50]
[331463839,1720427684175,-609.32,0.00034099,48]
[331463840,1720427684229,-324.01330124,0.00034099,32]
[331463841,1720427684278,-1410.88,0.00034099,51]
[331463842,1720427684326,-500.0,0.00034099,30]
[331463843,1720427684376,-500.0,0.00034099,39]
[331463844,1720427684424,-1410.88,0.00034099,52]
[331463845,1720427684473,-500.0,0.00034099,31]
[331463846,1720427684519,-500.0,0.00034099,40]
[331463847,1720427684566,-1410.89117501,0.00034099,53]
[331463848,1720427684612,-609.32,0.00034099,49]
[331463849,1720427684658,-500.0,0.00034099,41]
[331463850,1720427684702,-500.0,0.00034099,32]
[331463851,1720427684749,-609.32,0.00034099,50]
[331463852,1720427684796,-500.0,0.00034099,33]
[331463853,1720427684843,-500.0,0.00034099,42]
[331463854,1720427684895,-609.32,0.00034099,51]
[331463855,1720427684939,-351.15662854,0.00034099,34]
[331463856,1720427684989,-609.32,0.00034099,52]
[331463857,1720427685038,-500.0,0.00034099,43]
[331463858,1720427685085,-609.48,0.00034099,53]
[331463859,1720427685136,-500.0,0.00034099,44]
[331463860,1720427685185,-532.86,0.00034099,45]
[331463861,1720427685236,-500.0,0.00034099,30]
[331463862,1720427685286,-500.0,0.00034099,30]
[331463863,1720427685335,-237.39322478,0.00034099,31]
[331463864,1720427685381,-500.0,0.00034099,31]
[331463865,1720427685426,-500.0,0.00034099,32]
[331463866,1720427685471,-500.0,0.00034099,33]
[331463867,1720427685520,-500.0,0.00034099,30]
[331463868,1720427685568,-500.0,0.00034099,34]
[331463869,1720427685620,-500.0,0.00034099,31]
[331463870,1720427685675,-202.7193988,0.00034099,35]
[331463871,1720427685728,-500.0,0.00034099,32]
[331463872,1720427685782,-500.0,0.00034099,33]
[331463873,1720427685834,-500.0,0.00034099,34]
[331463874,1720427685883,-500.0,0.00034099,35]
[331463875,1720427685931,-549.62,0.00034099,30]
[331463876,1720427685989,-757.16,0.00034099,30]
[331463877,1720427686039,-549.62,0.00034099,31]
[331463878,1720427686089,-757.16,0.00034099,31]
[331463879,1720427686138,-500.0,0.00034099,36]
[331463880,1720427686186,-549.62,0.00034099,32]
[331463881,1720427686240,-757.16,0.00034099,32]
[331463882,1720427686293,-500.0,0.00034099,30]
[331463883,1720427686343,-500.0,0.00034099,37]
[331463884,1720427686392,-500.0,0.00034099,31]
[331463885,1720427686440,-757.16,0.00034099,33]
[331463886,1720427686497,-500.0,0.00034099,38]
[331463887,1720427686545,-549.62,0.00034099,33]
[331463888,1720427686591,-229.72038071,0.00034099,32]
[331463889,1720427686639,-500.0,0.00034099,39]
[331463890,1720427686687,-549.62,0.00034099,34]
[331463891,1720427686738,-757.16,0.00034099,34]
[331463892,1720427686787,-500.0,0.00034099,40]
[331463893,1720427686858,-642.02722213,0.00034099,30]
[331463894,1720427686911,-757.16,0.00034099,35]
[331463895,1720427686963,-500.0,0.00034099,30]
[331463896,1720427687012,-500.0,0.00034099,41]
[331463897,1720427687062,-757.16,0.00034099,36]
[331463898,1720427687109,-549.62,0.00034099,35]
[331463899,1720427687158,-500.0,0.00034099,31]
[331463900,1720427687207,-500.0,0.00034099,42]
[331463901,1720427687254,-757.16,0.00034099,37]
[331463902,1720427687303,-549.62,0.00034099,36]
[331463903,1720427687352,-500.0,0.00034099,32]
[331463904,1720427687400,-500.0,0.00034099,43]
[331463905,1720427687449,-757.16,0.00034099,38]
[331463906,1720427687497,-549.62,0.00034099,37]
[331463907,1720427687544,-757.16,0.00034099,39]
[331463908,1720427687592,-549.62,0.00034099,38]
[331463909,1720427687640,-500.0,0.00034099,44]
[331463910,1720427687687,-757.16,0.00034099,40]
[331463911,1720427687738,-500.0,0.00034099,33]
[331463912,1720427687787,-549.62,0.00034099,39]
[331463913,1720427687836,-757.16,0.00034099,41]
[331463914,1720427688197,-500.0,0.00034099,34]
[331463915,1720427688259,-549.62,0.00034099,40]
[331463916,1720427688307,-500.0,0.00034099,45]
[331463917,1720427688358,-757.16,0.00034099,42]
[331463918,1720427688408,-500.0,0.00034099,30]
[331463919,1720427688456,-606.02370716,0.00034099,35]
[331463920,1720427688502,-226.05891614,0.00034099,46]
[331463921,1720427688549,-757.16,0.00034099,43]
[331463922,1720427688595,-500.0,0.00034099,31]